[Event "Late-Titled-Tuesday-Blitz-September-19-2023"]
[Site "Chess.com"]
[Date "2023.09.19"]
[Round "6"]
[White "Djager97"]
[Black "Goryachkina"]
[Result "0-1"]
[WhiteElo "2533"]
[BlackElo "2682"]
[TimeControl "180+1"]
[EndTime "15:04:39 PDT"]
[Termination "Goryachkina won on time"]

1. e4 {[%clk 0:03:00.9]} 1... c6 {[%clk 0:02:57.2]} 2. d4 {[%clk 0:03:00.8]}
2... d5 {[%clk 0:02:57]} 3. exd5 {[%clk 0:03:01.7]} 3... cxd5 {[%clk 0:02:56.9]}
4. Bd3 {[%clk 0:03:02.2]} 4... Nc6 {[%clk 0:02:56.5]} 5. c3 {[%clk 0:03:02.3]}
5... Nf6 {[%clk 0:02:56.8]} 6. h3 {[%clk 0:03:02.2]} 6... g6 {[%clk 0:02:55.8]}
7. Nf3 {[%clk 0:03:02.1]} 7... Bf5 {[%clk 0:02:53.8]} 8. Be2 {[%clk 0:03:02.5]}
8... Qc7 {[%clk 0:02:53.2]} 9. O-O {[%clk 0:03:02.1]} 9... Bg7 {[%clk
0:02:53.2]} 10. Be3 {[%clk 0:03:02.7]} 10... O-O {[%clk 0:02:52.8]} 11. Nbd2
{[%clk 0:03:03.3]} 11... Rad8 {[%clk 0:02:50.9]} 12. Qc1 {[%clk 0:03:02.2]}
12... h6 {[%clk 0:02:41.9]} 13. Re1 {[%clk 0:02:54.8]} 13... g5 {[%clk
0:02:38.6]} 14. Nb3 {[%clk 0:02:45.7]} 14... Bg6 {[%clk 0:02:36.3]} 15. Bf1
{[%clk 0:02:42]} 15... Ne4 {[%clk 0:02:35]} 16. c4 {[%clk 0:02:28.7]} 16... Qd7
{[%clk 0:02:00]} 17. cxd5 {[%clk 0:02:13.1]} 17... Nb4 {[%clk 0:01:59.3]} 18.
Ne5 {[%clk 0:01:53.4]} 18... Bxe5 {[%clk 0:01:55.5]} 19. dxe5 {[%clk 0:01:53.5]}
19... Qxd5 {[%clk 0:01:51.8]} 20. Bc4 {[%clk 0:01:25.2]} 20... Qxe5 {[%clk
0:01:47.2]} 21. f3 {[%clk 0:01:23.1]} 21... Qg3 {[%clk 0:01:03]} 22. fxe4 {[%clk
0:01:09.8]} 22... Bxe4 {[%clk 0:01:01.1]} 23. Re2 {[%clk 0:00:39.5]} 23... Rc8
{[%clk 0:00:55]} 24. Nd2 {[%clk 0:00:31.7]} 24... Bxg2 {[%clk 0:00:49.3]} 25.
Qe1 {[%clk 0:00:17.8]} 25... Qxh3 {[%clk 0:00:29.3]} 26. Rxg2 {[%clk 0:00:16.2]}
26... Nc2 {[%clk 0:00:29.5]} 27. Qg3 {[%clk 0:00:10.7]} 27... Qxg3 {[%clk
0:00:26.4]} 28. Rxg3 {[%clk 0:00:11]} 28... Nxa1 {[%clk 0:00:26.6]} 29. b3
{[%clk 0:00:08.8]} 29... a6 {[%clk 0:00:20.1]} 30. Bd4 {[%clk 0:00:05.7]} 30...
Nc2 {[%clk 0:00:19.6]} 31. Bb2 {[%clk 0:00:05.7]} 31... Nb4 {[%clk 0:00:14.6]}
32. a3 {[%clk 0:00:04.6]} 32... Nc6 {[%clk 0:00:14.4]} 33. Ne4 {[%clk
0:00:04.7]} 33... Rfd8 {[%clk 0:00:13.8]} 34. Rf3 {[%clk 0:00:01.4]} 34... e6
{[%clk 0:00:12.5]} 0-1

[Event "Late-Titled-Tuesday-Blitz-September-19-2023"]
[Site "Chess.com"]
[Date "2023.09.19"]
[Round "6"]
[White "bazar-wokzal"]
[Black "dretch"]
[Result "0-1"]
[WhiteElo "2649"]
[BlackElo "2851"]
[TimeControl "180+1"]
[EndTime "15:04:45 PDT"]
[Termination "dretch won on time"]

1. e4 {[%clk 0:03:00.9]} 1... e6 {[%clk 0:03:00.2]} 2. d4 {[%clk 0:03:00.4]}
2... d5 {[%clk 0:03:00.8]} 3. exd5 {[%clk 0:03:00.8]} 3... exd5 {[%clk 0:03:01]}
4. Nf3 {[%clk 0:03:01.4]} 4... Bd6 {[%clk 0:03:00.8]} 5. c4 {[%clk 0:03:01.7]}
5... c6 {[%clk 0:02:58.7]} 6. Bd3 {[%clk 0:03:01.6]} 6... Ne7 {[%clk 0:02:57.9]}
7. O-O {[%clk 0:03:01.8]} 7... dxc4 {[%clk 0:02:56.7]} 8. Bxc4 {[%clk
0:03:01.7]} 8... O-O {[%clk 0:02:57]} 9. Nc3 {[%clk 0:03:01.2]} 9... Nd7 {[%clk
0:02:56]} 10. Bg5 {[%clk 0:02:56.5]} 10... Nb6 {[%clk 0:02:56.2]} 11. Bb3 {[%clk
0:02:56.6]} 11... Kh8 {[%clk 0:02:55.9]} 12. Re1 {[%clk 0:02:51.7]} 12... f6
{[%clk 0:02:56]} 13. Bh4 {[%clk 0:02:51.6]} 13... Bg4 {[%clk 0:02:53.8]} 14. h3
{[%clk 0:02:50.9]} 14... Bh5 {[%clk 0:02:53.7]} 15. g4 {[%clk 0:02:48.5]} 15...
Bf7 {[%clk 0:02:52.7]} 16. Ne4 {[%clk 0:02:36.6]} 16... Bxb3 {[%clk 0:02:46.3]}
17. Qxb3 {[%clk 0:02:36.2]} 17... Ng6 {[%clk 0:02:46.1]} 18. Bg3 {[%clk
0:02:32]} 18... Bxg3 {[%clk 0:02:43.5]} 19. fxg3 {[%clk 0:02:32.1]} 19... f5
{[%clk 0:02:32.3]} 20. Neg5 {[%clk 0:02:23.3]} 20... fxg4 {[%clk 0:02:31.4]} 21.
hxg4 {[%clk 0:02:16.8]} 21... Qd5 {[%clk 0:02:09.4]} 22. Qxd5 {[%clk 0:01:49.1]}
22... Nxd5 {[%clk 0:02:09]} 23. Ne5 {[%clk 0:01:42.9]} 23... Rf6 {[%clk
0:02:04.4]} 24. Ne4 {[%clk 0:01:30.8]} 24... Nxe5 {[%clk 0:01:49.5]} 25. dxe5
{[%clk 0:01:14.1]} 25... Rg6 {[%clk 0:01:48.6]} 26. g5 {[%clk 0:00:55.5]} 26...
Re8 {[%clk 0:01:44]} 27. Nd6 {[%clk 0:00:50.7]} 27... Re7 {[%clk 0:01:34.7]} 28.
e6 {[%clk 0:00:44.9]} 28... Rgxe6 {[%clk 0:01:26.9]} 29. Rxe6 {[%clk 0:00:43.7]}
29... Rxe6 {[%clk 0:01:27.3]} 30. Nxb7 {[%clk 0:00:44.1]} 30... Rg6 {[%clk
0:01:18.6]} 31. Re1 {[%clk 0:00:39.1]} 31... Kg8 {[%clk 0:01:18.5]} 32. Re8+
{[%clk 0:00:34.7]} 32... Kf7 {[%clk 0:01:17.3]} 33. Ra8 {[%clk 0:00:34.1]} 33...
Rxg5 {[%clk 0:01:15.1]} 34. Kf2 {[%clk 0:00:28]} 34... Rf5+ {[%clk 0:01:09.3]}
35. Kg1 {[%clk 0:00:19.9]} 35... Kg6 {[%clk 0:01:07.4]} 36. Nd6 {[%clk
0:00:17.5]} 36... Rf3 {[%clk 0:01:03.2]} 37. Kg2 {[%clk 0:00:15.2]} 37... Rd3
{[%clk 0:01:03]} 38. Rxa7 {[%clk 0:00:14.2]} 38... Ne3+ {[%clk 0:00:59.2]} 39.
Kf3 {[%clk 0:00:14.5]} 39... Nc4+ {[%clk 0:00:57.4]} 40. Ke4 {[%clk 0:00:13.2]}
40... Rxd6 {[%clk 0:00:57.2]} 41. b3 {[%clk 0:00:13.2]} 41... Nb6 {[%clk
0:00:54.1]} 42. Ke5 {[%clk 0:00:10.2]} 42... Rd2 {[%clk 0:00:49.1]} 43. a4
{[%clk 0:00:09]} 43... Nd7+ {[%clk 0:00:48.1]} 44. Kf4 {[%clk 0:00:06.9]} 44...
Nc5 {[%clk 0:00:46.4]} 45. b4 {[%clk 0:00:06.5]} 45... Rd4+ {[%clk 0:00:45.8]}
46. Ke5 {[%clk 0:00:04.9]} 46... Rxb4 {[%clk 0:00:46.7]} 47. Rc7 {[%clk
0:00:04.2]} 47... Nxa4 {[%clk 0:00:45.9]} 48. Rxc6+ {[%clk 0:00:04.3]} 48... Kg5
{[%clk 0:00:46.2]} 49. Rc7 {[%clk 0:00:04.9]} 49... Kh6 {[%clk 0:00:44.7]} 50.
Kf5 {[%clk 0:00:03.4]} 50... g6+ {[%clk 0:00:44.2]} 51. Kf6 {[%clk 0:00:03.1]}
51... Nb6 {[%clk 0:00:41.1]} 52. Rc1 {[%clk 0:00:02.1]} 52... Nd5+ {[%clk
0:00:40.6]} 53. Ke5 {[%clk 0:00:01.8]} 53... Ne3 {[%clk 0:00:40.7]} 0-1

[Event "Late-Titled-Tuesday-Blitz-September-19-2023"]
[Site "Chess.com"]
[Date "2023.09.19"]
[Round "6"]
[White "PawnEatingZombie"]
[Black "nitpicker"]
[Result "1/2-1/2"]
[WhiteElo "2192"]
[BlackElo "2224"]
[TimeControl "180+1"]
[EndTime "15:04:45 PDT"]
[Termination "Game drawn by repetition"]

1. e4 {[%clk 0:03:00.9]} 1... c5 {[%clk 0:02:59]} 2. c3 {[%clk 0:03:00.5]} 2...
g6 {[%clk 0:02:57.3]} 3. d4 {[%clk 0:02:59.3]} 3... cxd4 {[%clk 0:02:57.3]} 4.
cxd4 {[%clk 0:03:00.2]} 4... d5 {[%clk 0:02:56.9]} 5. e5 {[%clk 0:03:00.6]} 5...
Nc6 {[%clk 0:02:55.9]} 6. Nc3 {[%clk 0:02:59.5]} 6... Bg7 {[%clk 0:02:55.1]} 7.
Bb5 {[%clk 0:02:50.2]} 7... f6 {[%clk 0:02:53.1]} 8. Bf4 {[%clk 0:02:40.6]} 8...
Nh6 {[%clk 0:02:32.4]} 9. Qd2 {[%clk 0:02:30.6]} 9... Nf7 {[%clk 0:02:12.4]} 10.
exf6 {[%clk 0:02:20.9]} 10... Bxf6 {[%clk 0:02:06]} 11. Nf3 {[%clk 0:02:16.8]}
11... O-O {[%clk 0:02:02.3]} 12. h3 {[%clk 0:02:14.1]} 12... Nd6 {[%clk
0:01:56.9]} 13. Ba4 {[%clk 0:01:56.5]} 13... Ne4 {[%clk 0:01:40.3]} 14. Qe3
{[%clk 0:01:41.2]} 14... Nxc3 {[%clk 0:00:59.1]} 15. bxc3 {[%clk 0:01:40.2]}
15... Bf5 {[%clk 0:00:47.8]} 16. O-O {[%clk 0:01:35]} 16... Na5 {[%clk
0:00:43.5]} 17. Ne5 {[%clk 0:01:20]} 17... Rc8 {[%clk 0:00:42.4]} 18. Rac1
{[%clk 0:01:16.7]} 18... Nc4 {[%clk 0:00:39]} 19. Nxc4 {[%clk 0:01:14.7]} 19...
dxc4 {[%clk 0:00:35.6]} 20. Bc2 {[%clk 0:00:46.4]} 20... Bxc2 {[%clk 0:00:33.9]}
21. Rxc2 {[%clk 0:00:47.3]} 21... Qd5 {[%clk 0:00:31.8]} 22. Re1 {[%clk
0:00:45.7]} 22... b5 {[%clk 0:00:26.9]} 23. Bh6 {[%clk 0:00:37.4]} 23... Rfe8
{[%clk 0:00:24.7]} 24. Qe6+ {[%clk 0:00:35.1]} 24... Qxe6 {[%clk 0:00:24]} 25.
Rxe6 {[%clk 0:00:35.8]} 25... a5 {[%clk 0:00:19.8]} 26. Bf4 {[%clk 0:00:21.1]}
26... b4 {[%clk 0:00:16.8]} 27. cxb4 {[%clk 0:00:11.6]} 27... axb4 {[%clk
0:00:16.7]} 28. Rb6 {[%clk 0:00:10.2]} 28... b3 {[%clk 0:00:10.7]} 29. axb3
{[%clk 0:00:10.3]} 29... cxb3 {[%clk 0:00:10.6]} 30. Rxc8 {[%clk 0:00:10.9]}
30... Rxc8 {[%clk 0:00:10.5]} 31. Rxb3 {[%clk 0:00:11.8]} 31... Bxd4 {[%clk
0:00:10.2]} 32. Be3 {[%clk 0:00:10.4]} 32... Bf6 {[%clk 0:00:09.4]} 33. g3
{[%clk 0:00:10]} 33... Kf7 {[%clk 0:00:09.2]} 34. Kg2 {[%clk 0:00:10.5]} 34...
Rc6 {[%clk 0:00:09.2]} 35. h4 {[%clk 0:00:11]} 35... Ra6 {[%clk 0:00:08.9]} 36.
Rd3 {[%clk 0:00:10.7]} 36... Re6 {[%clk 0:00:08.2]} 37. Rb3 {[%clk 0:00:10.9]}
37... Ra6 {[%clk 0:00:07.8]} 38. Rb7 {[%clk 0:00:10.8]} 38... h5 {[%clk
0:00:07]} 39. Rc7 {[%clk 0:00:09.7]} 39... Ra2 {[%clk 0:00:06.3]} 40. Rb7 {[%clk
0:00:09.9]} 40... Rc2 {[%clk 0:00:06.1]} 41. Kf3 {[%clk 0:00:10.1]} 41... Ra2
{[%clk 0:00:05.9]} 42. Rc7 {[%clk 0:00:09.9]} 42... Rb2 {[%clk 0:00:04.9]} 43.
Ra7 {[%clk 0:00:09.8]} 43... Rc2 {[%clk 0:00:04.8]} 44. Rb7 {[%clk 0:00:09.6]}
44... Ra2 {[%clk 0:00:04.7]} 45. Rc7 {[%clk 0:00:09.6]} 45... Rb2 {[%clk
0:00:04.6]} 46. Ra7 {[%clk 0:00:09.6]} 46... Rc2 {[%clk 0:00:04.8]} 47. Rb7
{[%clk 0:00:09.8]} 1/2-1/2

[Event "Late-Titled-Tuesday-Blitz-September-19-2023"]
[Site "Chess.com"]
[Date "2023.09.19"]
[Round "6"]
[White "Firouzja2003"]
[Black "vladislavkovalev"]
[Result "1-0"]
[WhiteElo "3073"]
[BlackElo "2886"]
[TimeControl "180+1"]
[EndTime "15:04:46 PDT"]
[Termination "Firouzja2003 won on time"]

1. d4 {[%clk 0:03:00.9]} 1... Nf6 {[%clk 0:02:59.9]} 2. c4 {[%clk 0:02:59.4]}
2... e6 {[%clk 0:03:00.4]} 3. Nf3 {[%clk 0:02:59.6]} 3... Bb4+ {[%clk
0:03:00.9]} 4. Nbd2 {[%clk 0:02:58.6]} 4... O-O {[%clk 0:03:00.5]} 5. a3 {[%clk
0:02:58.3]} 5... Be7 {[%clk 0:03:01.1]} 6. e4 {[%clk 0:02:57.7]} 6... d6 {[%clk
0:03:01.6]} 7. Be2 {[%clk 0:02:56.9]} 7... Nfd7 {[%clk 0:03:02]} 8. O-O {[%clk
0:02:51.9]} 8... e5 {[%clk 0:03:02.4]} 9. d5 {[%clk 0:02:28.8]} 9... a5 {[%clk
0:03:02.2]} 10. Nb1 {[%clk 0:02:29.5]} 10... Nc5 {[%clk 0:02:45.9]} 11. Nc3
{[%clk 0:02:29.3]} 11... a4 {[%clk 0:02:26.4]} 12. Be3 {[%clk 0:02:28.7]} 12...
Nb3 {[%clk 0:02:08.6]} 13. Rb1 {[%clk 0:02:27.2]} 13... Bd7 {[%clk 0:02:07.9]}
14. Bd3 {[%clk 0:01:53]} 14... Na6 {[%clk 0:02:01.4]} 15. Bc2 {[%clk 0:01:53.1]}
15... Nac5 {[%clk 0:02:01.9]} 16. Ne1 {[%clk 0:01:40.3]} 16... Bg5 {[%clk
0:01:45.4]} 17. Bxc5 {[%clk 0:01:32.8]} 17... Nxc5 {[%clk 0:01:41.1]} 18. Nd3
{[%clk 0:01:32.8]} 18... Nxd3 {[%clk 0:01:30.9]} 19. Bxd3 {[%clk 0:01:33.7]}
19... Ra5 {[%clk 0:01:19.6]} 20. Bc2 {[%clk 0:01:26.1]} 20... Qa8 {[%clk
0:01:19.6]} 21. Qe2 {[%clk 0:01:25.2]} 21... Qa6 {[%clk 0:01:13.5]} 22. Bd3
{[%clk 0:01:20.7]} 22... Rc5 {[%clk 0:01:10.4]} 23. Kh1 {[%clk 0:01:18.8]} 23...
g6 {[%clk 0:01:02.4]} 24. Rbd1 {[%clk 0:01:12.4]} 24... h5 {[%clk 0:00:55.6]}
25. Nb5 {[%clk 0:01:05.7]} 25... Qb6 {[%clk 0:00:51]} 26. g3 {[%clk 0:01:00.4]}
26... Bh6 {[%clk 0:00:44.7]} 27. Kg2 {[%clk 0:00:54.6]} 27... Kg7 {[%clk
0:00:40.9]} 28. Qe1 {[%clk 0:00:47.3]} 28... h4 {[%clk 0:00:21.7]} 29. f4 {[%clk
0:00:37.2]} 29... c6 {[%clk 0:00:21.8]} 30. Nxd6 {[%clk 0:00:36.8]} 30... exf4
{[%clk 0:00:15.8]} 31. dxc6 {[%clk 0:00:19.3]} 31... Bxc6 {[%clk 0:00:12.5]} 32.
gxf4 {[%clk 0:00:19]} 32... Qxb2+ {[%clk 0:00:12.4]} 33. Kh1 {[%clk 0:00:16.1]}
33... h3 {[%clk 0:00:10.7]} 34. Qg3 {[%clk 0:00:15]} 34... Qxa3 {[%clk
0:00:08.7]} 35. Rg1 {[%clk 0:00:08.8]} 35... Rd8 {[%clk 0:00:06.6]} 36. Nxf7
{[%clk 0:00:08.2]} 36... g5 {[%clk 0:00:02.7]} 37. Nxd8 {[%clk 0:00:06]} 37...
Rxc4 {[%clk 0:00:01.7]} 38. Ne6+ {[%clk 0:00:06.1]} 38... Kf6 {[%clk 0:00:01.9]}
39. Nxg5 {[%clk 0:00:06.1]} 1-0

[Event "Late-Titled-Tuesday-Blitz-September-19-2023"]
[Site "Chess.com"]
[Date "2023.09.19"]
[Round "6"]
[White "KamlaPasand"]
[Black "cassoulet"]
[Result "0-1"]
[WhiteElo "2458"]
[BlackElo "2766"]
[TimeControl "180+1"]
[EndTime "15:04:46 PDT"]
[Termination "cassoulet won by checkmate"]

1. e4 {[%clk 0:02:28.5]} 1... c5 {[%clk 0:02:58.9]} 2. Nf3 {[%clk 0:02:28.3]}
2... Nc6 {[%clk 0:02:59]} 3. d4 {[%clk 0:02:28.5]} 3... cxd4 {[%clk 0:02:59.4]}
4. Nxd4 {[%clk 0:02:29.3]} 4... Nf6 {[%clk 0:03:00]} 5. Nc3 {[%clk 0:02:26.2]}
5... e6 {[%clk 0:03:00.3]} 6. Nxc6 {[%clk 0:02:19]} 6... bxc6 {[%clk 0:03:01.2]}
7. e5 {[%clk 0:02:19.7]} 7... Nd5 {[%clk 0:03:01.6]} 8. Ne4 {[%clk 0:02:20.4]}
8... Bb7 {[%clk 0:03:02.2]} 9. c4 {[%clk 0:02:18.7]} 9... Nb4 {[%clk 0:03:01.7]}
10. a3 {[%clk 0:02:14.2]} 10... Qa5 {[%clk 0:03:01.8]} 11. Bd2 {[%clk
0:02:09.2]} 11... Qxe5 {[%clk 0:03:01.2]} 12. f3 {[%clk 0:02:07.2]} 12... f5
{[%clk 0:02:51.4]} 13. Bc3 {[%clk 0:02:04.8]} 13... Qf4 {[%clk 0:02:48.1]} 14.
Bd2 {[%clk 0:01:33.9]} 14... Qc7 {[%clk 0:02:47.6]} 15. axb4 {[%clk 0:01:32.2]}
15... fxe4 {[%clk 0:02:47.5]} 16. fxe4 {[%clk 0:01:32.8]} 16... Qe5 {[%clk
0:02:41.8]} 17. Bd3 {[%clk 0:01:30.2]} 17... c5 {[%clk 0:02:39.3]} 18. Bc3
{[%clk 0:01:25.8]} 18... Qg5 {[%clk 0:02:36.4]} 19. O-O {[%clk 0:01:19.1]} 19...
cxb4 {[%clk 0:02:33.4]} 20. Bd4 {[%clk 0:01:14.7]} 20... Bc5 {[%clk 0:02:32.2]}
21. Bxc5 {[%clk 0:01:14.5]} 21... Qxc5+ {[%clk 0:02:33.1]} 22. Kh1 {[%clk
0:01:15.1]} 22... Rf8 {[%clk 0:02:29.3]} 23. Qg4 {[%clk 0:01:14.7]} 23... Qe5
{[%clk 0:02:14.2]} 24. Rxf8+ {[%clk 0:01:11.3]} 24... Kxf8 {[%clk 0:02:15.1]}
25. Rf1+ {[%clk 0:01:03.2]} 25... Kg8 {[%clk 0:02:15.2]} 26. Qf3 {[%clk
0:01:03.4]} 26... h6 {[%clk 0:01:42.1]} 27. b3 {[%clk 0:01:03.7]} 27... Bc6
{[%clk 0:01:15.7]} 28. h3 {[%clk 0:01:02.5]} 28... a5 {[%clk 0:01:15.4]} 29.
Qf7+ {[%clk 0:01:02.1]} 29... Kh8 {[%clk 0:01:15.5]} 30. Qe7 {[%clk 0:00:59.3]}
30... Kh7 {[%clk 0:01:08.8]} 31. Rf2 {[%clk 0:00:49.9]} 31... a4 {[%clk
0:01:05]} 32. Qxb4 {[%clk 0:00:47.6]} 32... Rb8 {[%clk 0:00:46.7]} 33. Qe7
{[%clk 0:00:41.7]} 33... axb3 {[%clk 0:00:45]} 34. Qa3 {[%clk 0:00:34.2]} 34...
Qd4 {[%clk 0:00:38.8]} 35. Rf3 {[%clk 0:00:33.3]} 35... b2 {[%clk 0:00:29.6]}
36. Qa2 {[%clk 0:00:33.3]} 36... Bxe4 {[%clk 0:00:27.1]} 37. Qb1 {[%clk
0:00:33.6]} 37... Bxd3 {[%clk 0:00:15.9]} 38. Rxd3 {[%clk 0:00:34.1]} 38... Qe4
{[%clk 0:00:16.2]} 39. c5 {[%clk 0:00:31.4]} 39... Kh8 {[%clk 0:00:15.2]} 40.
Kh2 {[%clk 0:00:31.1]} 40... Qxd3 {[%clk 0:00:14.9]} 41. Qxd3 {[%clk 0:00:30.9]}
41... b1=Q {[%clk 0:00:15.8]} 42. Qxd7 {[%clk 0:00:31]} 42... Qb7 {[%clk
0:00:15.6]} 43. Qxe6 {[%clk 0:00:31.1]} 43... Qc7+ {[%clk 0:00:15.9]} 44. g3
{[%clk 0:00:31.2]} 44... Qxc5 {[%clk 0:00:14.9]} 45. h4 {[%clk 0:00:32.1]} 45...
Qc2+ {[%clk 0:00:14.1]} 46. Kh3 {[%clk 0:00:32.5]} 46... Qc8 {[%clk 0:00:14.3]}
47. Qxc8+ {[%clk 0:00:32.1]} 47... Rxc8 {[%clk 0:00:15.2]} 48. Kg4 {[%clk
0:00:32.7]} 48... Rc5 {[%clk 0:00:15.1]} 49. h5 {[%clk 0:00:32.6]} 49... Kg8
{[%clk 0:00:15.2]} 50. Kh4 {[%clk 0:00:33.2]} 50... Kf7 {[%clk 0:00:16.1]} 51.
g4 {[%clk 0:00:33.4]} 51... Kf6 {[%clk 0:00:16.6]} 52. g5+ {[%clk 0:00:33.6]}
52... Rxg5 {[%clk 0:00:15.5]} 53. Kh3 {[%clk 0:00:34.5]} 53... Rxh5+ {[%clk
0:00:15.9]} 54. Kg4 {[%clk 0:00:35.4]} 54... Re5 {[%clk 0:00:16.4]} 55. Kf4
{[%clk 0:00:35.7]} 55... g5+ {[%clk 0:00:16.7]} 56. Kg4 {[%clk 0:00:35.7]} 56...
Re4+ {[%clk 0:00:17.1]} 57. Kh5 {[%clk 0:00:35.8]} 57... Rh4# {[%clk 0:00:16.9]}
0-1

[Event "Late-Titled-Tuesday-Blitz-September-19-2023"]
[Site "Chess.com"]
[Date "2023.09.19"]
[Round "6"]
[White "Oleksandr_Bortnyk"]
[Black "oskariot"]
[Result "1-0"]
[WhiteElo "3006"]
[BlackElo "2727"]
[TimeControl "180+1"]
[EndTime "15:04:48 PDT"]
[Termination "Oleksandr_Bortnyk won on time"]

1. e4 {[%clk 0:02:59]} 1... c6 {[%clk 0:02:57.4]} 2. c4 {[%clk 0:02:54.9]} 2...
g6 {[%clk 0:02:55.1]} 3. d4 {[%clk 0:02:54.3]} 3... Bg7 {[%clk 0:02:55.5]} 4.
Nc3 {[%clk 0:02:54.4]} 4... d6 {[%clk 0:02:56]} 5. g3 {[%clk 0:02:53.4]} 5... e5
{[%clk 0:02:54.6]} 6. Be3 {[%clk 0:02:53.6]} 6... Nf6 {[%clk 0:02:53.2]} 7. dxe5
{[%clk 0:02:49.7]} 7... Ng4 {[%clk 0:02:47.3]} 8. Qxd6 {[%clk 0:02:17.7]} 8...
Nxe3 {[%clk 0:02:42.5]} 9. fxe3 {[%clk 0:02:11.9]} 9... Qe7 {[%clk 0:02:33.7]}
10. Nf3 {[%clk 0:02:07.9]} 10... Bg4 {[%clk 0:02:30.4]} 11. Be2 {[%clk
0:02:06.8]} 11... Bxf3 {[%clk 0:02:29.8]} 12. Bxf3 {[%clk 0:02:07.7]} 12... Bxe5
{[%clk 0:02:26.5]} 13. Qxe7+ {[%clk 0:02:07.2]} 13... Kxe7 {[%clk 0:02:27.2]}
14. Ne2 {[%clk 0:02:05.4]} 14... Nd7 {[%clk 0:02:26.1]} 15. O-O-O {[%clk
0:02:05.8]} 15... a5 {[%clk 0:02:19]} 16. Nd4 {[%clk 0:02:00.3]} 16... Nc5
{[%clk 0:02:19]} 17. Kc2 {[%clk 0:01:58.7]} 17... h5 {[%clk 0:02:15.8]} 18. Rd2
{[%clk 0:01:56.5]} 18... h4 {[%clk 0:02:09.1]} 19. g4 {[%clk 0:01:52.4]} 19...
Rad8 {[%clk 0:01:56.2]} 20. h3 {[%clk 0:01:51.5]} 20... Rd6 {[%clk 0:01:56.2]}
21. Rhd1 {[%clk 0:01:49.5]} 21... Rhd8 {[%clk 0:01:52.6]} 22. Bg2 {[%clk
0:01:49.3]} 22... Ne6 {[%clk 0:01:46.4]} 23. Nf3 {[%clk 0:01:48.3]} 23... Rxd2+
{[%clk 0:01:41.4]} 24. Rxd2 {[%clk 0:01:49.2]} 24... Rxd2+ {[%clk 0:01:41.2]}
25. Nxd2 {[%clk 0:01:39.4]} 25... Bg3 {[%clk 0:01:17.6]} 26. a3 {[%clk
0:01:33.1]} 26... a4 {[%clk 0:01:05.9]} 27. b4 {[%clk 0:01:30.4]} 27... axb3+
{[%clk 0:01:04.6]} 28. Nxb3 {[%clk 0:01:30.4]} 28... Kd6 {[%clk 0:00:49.3]} 29.
Nd4 {[%clk 0:01:29.9]} 29... Bf2 {[%clk 0:00:42.3]} 30. Kd3 {[%clk 0:01:28.2]}
30... Nc5+ {[%clk 0:00:39.5]} 31. Ke2 {[%clk 0:01:27.5]} 31... Bg3 {[%clk
0:00:39.2]} 32. Nf3 {[%clk 0:01:13.4]} 32... Nxe4 {[%clk 0:00:31.5]} 33. Nxh4
{[%clk 0:01:13.5]} 33... Nc3+ {[%clk 0:00:25.1]} 34. Kd3 {[%clk 0:01:13.8]}
34... Bxh4 {[%clk 0:00:20.8]} 35. Kxc3 {[%clk 0:01:14.2]} 35... g5 {[%clk
0:00:18.2]} 36. Kd4 {[%clk 0:01:12.3]} 36... Bf2 {[%clk 0:00:13.9]} 37. c5+
{[%clk 0:01:12]} 37... Ke6 {[%clk 0:00:13.1]} 38. Be4 {[%clk 0:01:09.8]} 38...
Ke7 {[%clk 0:00:09.7]} 39. Bf5 {[%clk 0:01:09.1]} 39... Kd8 {[%clk 0:00:09.9]}
40. a4 {[%clk 0:01:08.3]} 40... Kc7 {[%clk 0:00:10.5]} 41. Bd3 {[%clk
0:01:03.3]} 41... f6 {[%clk 0:00:09.1]} 42. Ke4 {[%clk 0:01:00.4]} 42... Bg3
{[%clk 0:00:07.1]} 43. Kf5 {[%clk 0:01:00.5]} 43... Be5 {[%clk 0:00:08]} 44. h4
{[%clk 0:00:48.3]} 44... gxh4 {[%clk 0:00:08.9]} 45. g5 {[%clk 0:00:49.2]} 45...
fxg5 {[%clk 0:00:08.1]} 46. Kxe5 {[%clk 0:00:50.1]} 46... h3 {[%clk 0:00:03.5]}
47. Kf5 {[%clk 0:00:48.6]} 47... b6 {[%clk 0:00:03.5]} 48. cxb6+ {[%clk
0:00:31.2]} 48... Kxb6 {[%clk 0:00:04.4]} 49. Kg4 {[%clk 0:00:31.6]} 49... h2
{[%clk 0:00:04.4]} 50. Be4 {[%clk 0:00:32.4]} 50... c5 {[%clk 0:00:04.2]} 51.
Kg3 {[%clk 0:00:33.1]} 51... Ka5 {[%clk 0:00:04.5]} 52. Kxh2 {[%clk 0:00:29.6]}
52... Kxa4 {[%clk 0:00:04.5]} 53. Kg3 {[%clk 0:00:30.2]} 53... Kb3 {[%clk
0:00:03.4]} 54. Kg4 {[%clk 0:00:30.7]} 1-0